[Event "*** Titled Tuesday Blitz"]
[Site "Chess.com"]
[Date "2021.04.27"]
[Round "3"]
[White "827883"]
[Black "Caterpiller35"]
[Result "0-1"]
[WhiteElo "2262"]
[BlackElo "2486"]
[TimeControl "180+1"]
[EndTime "10:27:30 PDT"]
[Termination "Caterpiller35 won by resignation"]

1. e4 {[%clk 0:02:55.1]} 1... c5 {[%clk 0:02:59.5]} 2. Nf3 {[%clk 0:02:55.2]}
2... Nc6 {[%clk 0:03:00.1]} 3. d4 {[%clk 0:02:54.2]} 3... cxd4 {[%clk 0:03:01]}
4. Nxd4 {[%clk 0:02:51.4]} 4... e5 {[%clk 0:03:01.9]} 5. Nb5 {[%clk 0:02:48.3]}
5... d6 {[%clk 0:03:01.7]} 6. N1c3 {[%clk 0:02:44.7]} 6... a6 {[%clk 0:03:01.6]}
7. Na3 {[%clk 0:02:45.1]} 7... b5 {[%clk 0:03:02.5]} 8. Nd5 {[%clk 0:02:45.6]}
8... Nge7 {[%clk 0:03:03.1]} 9. c4 {[%clk 0:02:45.7]} 9... Nd4 {[%clk
0:03:03.2]} 10. Bd3 {[%clk 0:02:22.3]} 10... Nxd5 {[%clk 0:03:01.4]} 11. cxd5
{[%clk 0:02:18]} 11... Be7 {[%clk 0:03:01.2]} 12. O-O {[%clk 0:02:18]} 12... O-O
{[%clk 0:03:00.4]} 13. Nc2 {[%clk 0:02:18.2]} 13... Nxc2 {[%clk 0:02:48.3]} 14.
Qxc2 {[%clk 0:02:17.6]} 14... Bd7 {[%clk 0:02:48.3]} 15. Be3 {[%clk 0:02:15.5]}
15... Qb8 {[%clk 0:02:43.4]} 16. b4 {[%clk 0:01:59.2]} 16... Rc8 {[%clk
0:02:42.1]} 17. Qb2 {[%clk 0:01:56.2]} 17... Bd8 {[%clk 0:02:38.9]} 18. Rfc1
{[%clk 0:01:51.1]} 18... Bb6 {[%clk 0:02:29.6]} 19. Bg5 {[%clk 0:01:42]} 19...
Bd4 {[%clk 0:02:25]} 20. Qb1 {[%clk 0:01:34]} 20... Rxc1+ {[%clk 0:02:22.3]} 21.
Qxc1 {[%clk 0:01:34]} 21... Bxa1 {[%clk 0:02:22.8]} 22. Qxa1 {[%clk 0:01:34.9]}
22... Qc7 {[%clk 0:02:18.5]} 23. Bd2 {[%clk 0:01:31]} 23... Rc8 {[%clk
0:02:14.9]} 24. h3 {[%clk 0:01:30.6]} 24... Qb6 {[%clk 0:02:08.4]} 25. Qb2
{[%clk 0:01:26.1]} 25... h6 {[%clk 0:02:05]} 26. Be3 {[%clk 0:01:19.8]} 26...
Qc7 {[%clk 0:02:04.6]} 27. Bd2 {[%clk 0:01:20]} 27... Rf8 {[%clk 0:02:01.4]} 28.
Qb1 {[%clk 0:01:16.6]} 28... Kh7 {[%clk 0:01:56.9]} 29. Kf1 {[%clk 0:01:12.6]}
29... g6 {[%clk 0:01:56.1]} 30. g4 {[%clk 0:00:58.2]} 30... h5 {[%clk
0:01:49.8]} 31. f3 {[%clk 0:00:47.9]} 31... hxg4 {[%clk 0:01:48.9]} 32. hxg4
{[%clk 0:00:48.2]} 32... Kg7 {[%clk 0:01:49.1]} 33. Kg2 {[%clk 0:00:47.9]} 33...
Rh8 {[%clk 0:01:49]} 34. Qg1 {[%clk 0:00:46.9]} 34... Qd8 {[%clk 0:01:45.8]} 35.
Qf2 {[%clk 0:00:45]} 35... Qh4 {[%clk 0:01:31.1]} 36. Qxh4 {[%clk 0:00:44.7]}
36... Rxh4 {[%clk 0:01:32]} 37. Bc3 {[%clk 0:00:41.8]} 37... f5 {[%clk
0:01:28.6]} 38. gxf5 {[%clk 0:00:32.1]} 38... gxf5 {[%clk 0:01:29.5]} 39. Bd2
{[%clk 0:00:30]} 39... f4 {[%clk 0:01:23.8]} 40. Bc3 {[%clk 0:00:25.1]} 40...
Kf6 {[%clk 0:01:23.3]} 41. Be1 {[%clk 0:00:25.3]} 41... Rh8 {[%clk 0:01:23]} 42.
Bd2 {[%clk 0:00:25.6]} 42... Rg8+ {[%clk 0:01:23.2]} 43. Kf2 {[%clk 0:00:25.8]}
43... Kg5 {[%clk 0:01:21.9]} 44. Be2 {[%clk 0:00:24.9]} 44... Kh4 {[%clk
0:01:22.1]} 45. Bd3 {[%clk 0:00:24.8]} 45... Kh3 {[%clk 0:01:21.5]} 46. Bf1+
{[%clk 0:00:24.9]} 46... Kh2 {[%clk 0:01:21.8]} 47. Be1 {[%clk 0:00:24.4]} 47...
Bh3 {[%clk 0:01:21.6]} 48. Be2 {[%clk 0:00:24.7]} 48... Rg2+ {[%clk 0:01:20.6]}
49. Kf1 {[%clk 0:00:25.1]} 49... Kh1 {[%clk 0:01:15.7]} 50. Bh4 {[%clk
0:00:24.7]} 50... Rg4+ {[%clk 0:01:15.2]} 0-1

[Event "*** Titled Tuesday Blitz"]
[Site "Chess.com"]
[Date "2021.04.27"]
[Round "3"]
[White "aljado"]
[Black "Guzman70"]
[Result "0-1"]
[WhiteElo "2040"]
[BlackElo "2291"]
[TimeControl "180+1"]
[EndTime "10:27:30 PDT"]
[Termination "Guzman70 won by resignation"]

1. e4 {[%clk 0:03:00.9]} 1... c5 {[%clk 0:02:59.2]} 2. Nf3 {[%clk 0:03:00]} 2...
d6 {[%clk 0:02:58.8]} 3. Nc3 {[%clk 0:02:58.4]} 3... Nf6 {[%clk 0:02:57.9]} 4.
e5 {[%clk 0:02:58.5]} 4... dxe5 {[%clk 0:02:56.7]} 5. Nxe5 {[%clk 0:02:59]} 5...
Nbd7 {[%clk 0:02:56.8]} 6. d4 {[%clk 0:02:57]} 6... Nxe5 {[%clk 0:02:51.9]} 7.
dxe5 {[%clk 0:02:56.7]} 7... Qxd1+ {[%clk 0:02:51.9]} 8. Kxd1 {[%clk 0:02:56.3]}
8... Ng4 {[%clk 0:02:48.5]} 9. Bb5+ {[%clk 0:02:55.8]} 9... Bd7 {[%clk
0:02:47.5]} 10. e6 {[%clk 0:02:54.7]} 10... fxe6 {[%clk 0:02:35.3]} 11. Ke2
{[%clk 0:02:51]} 11... O-O-O {[%clk 0:02:30.9]} 12. Bxd7+ {[%clk 0:02:45.7]}
12... Rxd7 {[%clk 0:02:30.5]} 13. Bf4 {[%clk 0:02:42.7]} 13... g6 {[%clk
0:02:23.8]} 14. Nb5 {[%clk 0:02:37.7]} 14... b6 {[%clk 0:02:20.9]} 15. Nc3
{[%clk 0:02:38.6]} 15... Bg7 {[%clk 0:02:19.9]} 16. Rad1 {[%clk 0:02:32.2]}
16... Bxc3 {[%clk 0:02:17.1]} 17. bxc3 {[%clk 0:02:30.2]} 17... Rhd8 {[%clk
0:02:15.7]} 18. Rxd7 {[%clk 0:02:25.1]} 18... Rxd7 {[%clk 0:02:15.5]} 19. f3
{[%clk 0:02:24.7]} 19... Nf6 {[%clk 0:02:10.6]} 20. Rd1 {[%clk 0:02:15.9]} 20...
Rxd1 {[%clk 0:02:07.7]} 21. Kxd1 {[%clk 0:02:14.6]} 21... Nd5 {[%clk 0:02:04.8]}
22. Bd2 {[%clk 0:02:11.2]} 22... c4 {[%clk 0:02:03.5]} 23. Ke2 {[%clk
0:02:09.9]} 23... Kd7 {[%clk 0:02:03.7]} 24. f4 {[%clk 0:02:07.7]} 24... Kc6
{[%clk 0:02:02.2]} 25. Kf3 {[%clk 0:02:07.7]} 25... Nf6 {[%clk 0:02:00]} 26. g4
{[%clk 0:02:03]} 26... h5 {[%clk 0:01:54.8]} 27. gxh5 {[%clk 0:01:58.7]} 27...
gxh5 {[%clk 0:01:47.7]} 28. h3 {[%clk 0:01:44.4]} 28... Kb5 {[%clk 0:01:43.9]}
29. Ke3 {[%clk 0:01:41.9]} 29... Ka4 {[%clk 0:01:41.5]} 30. Kd4 {[%clk
0:01:41.6]} 30... b5 {[%clk 0:01:40.6]} 31. Bc1 {[%clk 0:01:36.2]} 31... a6
{[%clk 0:01:36.3]} 32. Bb2 {[%clk 0:01:29]} 32... Nd7 {[%clk 0:01:32.6]} 33. Bc1
{[%clk 0:01:25.7]} 33... Ka5 {[%clk 0:01:30.5]} 34. Ba3 {[%clk 0:01:23.3]} 34...
Kb6 {[%clk 0:01:23.6]} 35. Bxe7 {[%clk 0:01:22.4]} 35... Kc6 {[%clk 0:01:23.8]}
36. a3 {[%clk 0:01:13.1]} 36... Nb6 {[%clk 0:01:19.1]} 37. Ke5 {[%clk
0:01:09.8]} 37... Nd5 {[%clk 0:01:12.5]} 38. Bb4 {[%clk 0:01:04.3]} 38... Kb6
{[%clk 0:01:00]} 39. f5 {[%clk 0:01:01.8]} 39... Nxb4 {[%clk 0:00:56.8]} 40.
cxb4 {[%clk 0:00:59.9]} 40... exf5 {[%clk 0:00:57.2]} 41. Kxf5 {[%clk
0:00:59.3]} 41... Kc6 {[%clk 0:00:53.8]} 42. Kg5 {[%clk 0:00:59.4]} 42... Kd5
{[%clk 0:00:54.2]} 43. Kxh5 {[%clk 0:00:59.1]} 43... Kd4 {[%clk 0:00:54.5]} 44.
Kg4 {[%clk 0:00:55.8]} 44... Kc3 {[%clk 0:00:55.4]} 45. h4 {[%clk 0:00:55.5]}
45... Kxc2 {[%clk 0:00:56.3]} 46. h5 {[%clk 0:00:55.6]} 46... Kb1 {[%clk
0:00:56.8]} 47. h6 {[%clk 0:00:56.1]} 47... c3 {[%clk 0:00:57.7]} 48. h7 {[%clk
0:00:56.4]} 48... c2 {[%clk 0:00:58.6]} 49. h8=Q {[%clk 0:00:56.2]} 49... c1=Q
{[%clk 0:00:59.5]} 50. Qh7+ {[%clk 0:00:51.5]} 50... Ka2 {[%clk 0:00:58.1]} 51.
Qh3 {[%clk 0:00:40.9]} 51... Qc8+ {[%clk 0:00:55.7]} 0-1

[Event "*** Titled Tuesday Blitz"]
[Site "Chess.com"]
[Date "2021.04.27"]
[Round "3"]
[White "dmitrijiIM"]
[Black "Kale36"]
[Result "1-0"]
[WhiteElo "2568"]
[BlackElo "2271"]
[TimeControl "180+1"]
[EndTime "10:27:31 PDT"]
[Termination "dmitrijiIM won by resignation"]

1. e4 {[%clk 0:03:00.4]} 1... Nc6 {[%clk 0:02:59.1]} 2. Nf3 {[%clk 0:02:59.6]}
2... d6 {[%clk 0:02:59.1]} 3. d4 {[%clk 0:02:58.8]} 3... Bg4 {[%clk 0:02:59]} 4.
Be2 {[%clk 0:02:58.9]} 4... e5 {[%clk 0:02:58.6]} 5. d5 {[%clk 0:02:58.6]} 5...
Nce7 {[%clk 0:02:58.7]} 6. O-O {[%clk 0:02:59.5]} 6... Nf6 {[%clk 0:02:57.7]} 7.
c3 {[%clk 0:02:57.3]} 7... g6 {[%clk 0:02:57.1]} 8. h3 {[%clk 0:02:57.1]} 8...
Bd7 {[%clk 0:02:56.8]} 9. Nbd2 {[%clk 0:02:55.8]} 9... Bg7 {[%clk 0:02:56.7]}
10. Qb3 {[%clk 0:02:53.2]} 10... Rb8 {[%clk 0:02:54.4]} 11. Qa3 {[%clk
0:02:52.2]} 11... a6 {[%clk 0:02:53.6]} 12. c4 {[%clk 0:02:51.4]} 12... O-O
{[%clk 0:02:47.9]} 13. c5 {[%clk 0:02:51.1]} 13... Ne8 {[%clk 0:02:44.4]} 14.
Nc4 {[%clk 0:02:34.9]} 14... h6 {[%clk 0:02:32.9]} 15. cxd6 {[%clk 0:02:33.4]}
15... cxd6 {[%clk 0:02:28.5]} 16. Nxd6 {[%clk 0:02:34.3]} 16... Nc7 {[%clk
0:01:54]} 17. Nc4 {[%clk 0:02:23.2]} 17... Nb5 {[%clk 0:01:53.1]} 18. Qd3 {[%clk
0:02:19.6]} 18... f5 {[%clk 0:01:41.1]} 19. Nfxe5 {[%clk 0:02:15.3]} 19... fxe4
{[%clk 0:01:38.6]} 20. Qxe4 {[%clk 0:02:16.2]} 20... Bf5 {[%clk 0:01:37.3]} 21.
Qe3 {[%clk 0:02:11.6]} 21... Nxd5 {[%clk 0:01:35.2]} 22. Qd2 {[%clk 0:02:12.2]}
22... Nf6 {[%clk 0:01:12]} 23. Qxd8 {[%clk 0:02:05]} 23... Rbxd8 {[%clk
0:01:10.2]} 24. g4 {[%clk 0:02:01]} 24... Nd7 {[%clk 0:01:01.1]} 25. Nxd7 {[%clk
0:01:46.8]} 25... Bxd7 {[%clk 0:00:59.9]} 26. Be3 {[%clk 0:01:47.3]} 26... Nd4
{[%clk 0:00:57.6]} 27. Bxd4 {[%clk 0:01:44.8]} 27... Bxd4 {[%clk 0:00:58.5]} 28.
Rad1 {[%clk 0:01:45.1]} 28... Bc6 {[%clk 0:00:55.1]} 29. b3 {[%clk 0:01:42.4]}
29... b5 {[%clk 0:00:31.9]} 30. Ne3 {[%clk 0:01:38.9]} 30... Bxe3 {[%clk
0:00:31]} 31. fxe3 {[%clk 0:01:39.8]} 31... Be4 {[%clk 0:00:29.9]} 32. Rxf8+
{[%clk 0:01:36.8]} 32... Rxf8 {[%clk 0:00:29.1]} 33. Rd6 {[%clk 0:01:36.6]}
33... Kg7 {[%clk 0:00:24.4]} 34. Rxa6 {[%clk 0:01:35.9]} 34... b4 {[%clk
0:00:21.5]} 35. Rb6 {[%clk 0:01:34.1]} 35... Rd8 {[%clk 0:00:20.4]} 36. Rxb4
{[%clk 0:01:33]} 36... Rd2 {[%clk 0:00:20.5]} 37. Rxe4 {[%clk 0:01:28.9]} 37...
Rxe2 {[%clk 0:00:20.7]} 38. a4 {[%clk 0:01:29.5]} 38... Rb2 {[%clk 0:00:16.2]}
39. a5 {[%clk 0:01:29.9]} 39... Rxb3 {[%clk 0:00:15.5]} 40. Ra4 {[%clk
0:01:28.5]} 40... Rb7 {[%clk 0:00:15.4]} 41. a6 {[%clk 0:01:28.7]} 41... Ra7
{[%clk 0:00:16.3]} 42. e4 {[%clk 0:01:29.1]} 42... Kf6 {[%clk 0:00:17.2]} 43.
Kf2 {[%clk 0:01:29.6]} 43... Kg5 {[%clk 0:00:18.1]} 44. Kg3 {[%clk 0:01:29.6]}
44... h5 {[%clk 0:00:16.6]} 45. Ra5+ {[%clk 0:01:28.7]} 45... Kh6 {[%clk
0:00:16.1]} 46. Kf4 {[%clk 0:01:28.7]} 46... hxg4 {[%clk 0:00:13.8]} 47. hxg4
{[%clk 0:01:29.6]} 47... g5+ {[%clk 0:00:13.3]} 48. Ke5 {[%clk 0:01:30.1]} 48...
Kg6 {[%clk 0:00:13.3]} 49. Kd6 {[%clk 0:01:30.6]} 49... Kf6 {[%clk 0:00:12]} 50.
Kc6 {[%clk 0:01:31.1]} 50... Re7 {[%clk 0:00:12.6]} 51. a7 {[%clk 0:01:30.5]}
1-0

[Event "*** Titled Tuesday Blitz"]
[Site "Chess.com"]
[Date "2021.04.27"]
[Round "3"]
[White "jerry_77"]
[Black "chito89"]
[Result "1/2-1/2"]
[WhiteElo "2464"]
[BlackElo "2750"]
[TimeControl "180+1"]
[EndTime "10:27:37 PDT"]
[Termination "Game drawn by repetition"]

1. e4 {[%clk 0:02:59]} 1... c6 {[%clk 0:02:59.4]} 2. Nc3 {[%clk 0:02:58.9]} 2...
d5 {[%clk 0:02:57.6]} 3. d4 {[%clk 0:02:59.8]} 3... dxe4 {[%clk 0:02:57.3]} 4.
Nxe4 {[%clk 0:03:00.7]} 4... Nd7 {[%clk 0:02:57.7]} 5. Qe2 {[%clk 0:03:00.5]}
5... e6 {[%clk 0:02:57.1]} 6. c3 {[%clk 0:03:00.8]} 6... Ngf6 {[%clk 0:02:57.1]}
7. Ng3 {[%clk 0:02:58.8]} 7... h5 {[%clk 0:02:52]} 8. Nf3 {[%clk 0:02:57.6]}
8... h4 {[%clk 0:02:49.8]} 9. Ne4 {[%clk 0:02:56.9]} 9... Nxe4 {[%clk
0:02:34.9]} 10. Qxe4 {[%clk 0:02:57.8]} 10... Nf6 {[%clk 0:02:35.5]} 11. Qc2
{[%clk 0:02:36.6]} 11... h3 {[%clk 0:02:30.6]} 12. gxh3 {[%clk 0:02:34.9]} 12...
Qd5 {[%clk 0:02:21.1]} 13. Qe2 {[%clk 0:02:16.5]} 13... c5 {[%clk 0:02:16.4]}
14. Rg1 {[%clk 0:02:15.8]} 14... Bd7 {[%clk 0:02:10.8]} 15. Rg5 {[%clk
0:02:10.5]} 15... Qe4 {[%clk 0:02:02.8]} 16. Qxe4 {[%clk 0:02:03.8]} 16... Nxe4
{[%clk 0:02:03.7]} 17. Re5 {[%clk 0:02:04.4]} 17... Bc6 {[%clk 0:01:46.4]} 18.
d5 {[%clk 0:01:47.8]} 18... Bxd5 {[%clk 0:01:41.2]} 19. Bb5+ {[%clk 0:01:47.7]}
19... Kd8 {[%clk 0:01:27.9]} 20. c4 {[%clk 0:01:47.1]} 20... f6 {[%clk
0:01:24.9]} 21. cxd5 {[%clk 0:01:43.7]} 21... fxe5 {[%clk 0:01:21.5]} 22. dxe6
{[%clk 0:01:39.6]} 22... Bd6 {[%clk 0:01:00.8]} 23. Be3 {[%clk 0:01:35.3]} 23...
Rxh3 {[%clk 0:00:56.9]} 24. Ke2 {[%clk 0:01:32.3]} 24... Ke7 {[%clk 0:00:54.1]}
25. Rg1 {[%clk 0:01:23.9]} 25... Rg8 {[%clk 0:00:52]} 26. Bd3 {[%clk 0:01:12.9]}
26... Nf6 {[%clk 0:00:47.9]} 27. Bg5 {[%clk 0:01:12.4]} 27... e4 {[%clk
0:00:32.2]} 28. Bxe4 {[%clk 0:01:11.1]} 28... Kxe6 {[%clk 0:00:32.6]} 29. Bxf6
{[%clk 0:01:00.7]} 29... Kxf6 {[%clk 0:00:31]} 30. Rg6+ {[%clk 0:01:00.9]} 30...
Ke7 {[%clk 0:00:27.7]} 31. Bxb7 {[%clk 0:00:57.8]} 31... Rb8 {[%clk 0:00:23.4]}
32. Rxg7+ {[%clk 0:00:55.4]} 32... Kf6 {[%clk 0:00:23.3]} 33. Rd7 {[%clk
0:00:54.3]} 33... Ke6 {[%clk 0:00:22.7]} 34. Rg7 {[%clk 0:00:53.4]} 34... Kf6
{[%clk 0:00:23.1]} 35. Rd7 {[%clk 0:00:36.7]} 35... Ke6 {[%clk 0:00:19.7]} 36.
Rg7 {[%clk 0:00:34.8]} 36... Kf6 {[%clk 0:00:19.7]} 1/2-1/2

[Event "*** Titled Tuesday Blitz"]
[Site "Chess.com"]
[Date "2021.04.27"]
[Round "3"]
[White "RiskyDecision"]
[Black "miragha_yev"]
[Result "0-1"]
[WhiteElo "2513"]
[BlackElo "2733"]
[TimeControl "180+1"]
[EndTime "10:27:39 PDT"]
[Termination "miragha_yev won by resignation"]

1. d4 {[%clk 0:03:00.9]} 1... d5 {[%clk 0:02:59.2]} 2. c4 {[%clk 0:03:00.7]}
2... e6 {[%clk 0:02:57.8]} 3. Nf3 {[%clk 0:03:00.3]} 3... c6 {[%clk 0:02:56.4]}
4. Qc2 {[%clk 0:02:59.4]} 4... Nd7 {[%clk 0:02:43.8]} 5. g3 {[%clk 0:02:59.8]}
5... Bd6 {[%clk 0:02:37.1]} 6. Bg2 {[%clk 0:02:59.6]} 6... Ngf6 {[%clk
0:02:35.1]} 7. O-O {[%clk 0:03:00.2]} 7... O-O {[%clk 0:02:34.4]} 8. b3 {[%clk
0:02:59.5]} 8... e5 {[%clk 0:02:30.5]} 9. dxe5 {[%clk 0:02:56.4]} 9... Nxe5
{[%clk 0:02:31.4]} 10. Bb2 {[%clk 0:02:53.6]} 10... Re8 {[%clk 0:02:27.7]} 11.
Rd1 {[%clk 0:02:47]} 11... Neg4 {[%clk 0:02:14.5]} 12. Nc3 {[%clk 0:02:27.3]}
12... Bc5 {[%clk 0:02:10.4]} 13. Nd4 {[%clk 0:02:01.1]} 13... Nxf2 {[%clk
0:01:56.3]} 14. Kxf2 {[%clk 0:01:59.3]} 14... Ng4+ {[%clk 0:01:56.1]} 15. Kg1
{[%clk 0:01:59.9]} 15... Ne3 {[%clk 0:01:51.6]} 16. Qd3 {[%clk 0:01:53.8]} 16...
dxc4 {[%clk 0:01:49.9]} 17. bxc4 {[%clk 0:01:53.5]} 17... Nxd1 {[%clk
0:01:45.1]} 18. Rxd1 {[%clk 0:01:54.4]} 18... Bg4 {[%clk 0:01:42.7]} 19. Kh1
{[%clk 0:01:49.6]} 19... Qxd4 {[%clk 0:01:38.5]} 20. Qxd4 {[%clk 0:01:50.5]}
20... Bxd4 {[%clk 0:01:39.4]} 21. Rxd4 {[%clk 0:01:49.9]} 21... Bxe2 {[%clk
0:01:37.6]} 22. Ne4 {[%clk 0:01:39.8]} 22... Rad8 {[%clk 0:01:31.1]} 23. Nd6
{[%clk 0:01:34.4]} 23... c5 {[%clk 0:01:20.7]} 24. Rd5 {[%clk 0:01:24.1]} 24...
Bxc4 {[%clk 0:01:07.7]} 25. Re5 {[%clk 0:00:42.5]} 25... Rxe5 {[%clk 0:01:03.6]}
26. Bxe5 {[%clk 0:00:43.4]} 26... f6 {[%clk 0:00:43.8]} 27. Bxb7 {[%clk
0:00:40.3]} 27... Bxa2 {[%clk 0:00:36.2]} 28. Bxf6 {[%clk 0:00:13.4]} 28... Rxd6
{[%clk 0:00:26]} 29. Be5 {[%clk 0:00:09.6]} 0-1

[Event "*** Titled Tuesday Blitz"]
[Site "Chess.com"]
[Date "2021.04.27"]
[Round "3"]
[White "Vigorito-NE"]
[Black "Korchmar_Vasiliy"]
[Result "0-1"]
[WhiteElo "2389"]
[BlackElo "2697"]
[TimeControl "180+1"]
[EndTime "10:27:45 PDT"]
[Termination "Korchmar_Vasiliy won by resignation"]

1. d4 {[%clk 0:03:00.9]} 1... Nf6 {[%clk 0:02:59.8]} 2. c4 {[%clk 0:03:01]} 2...
c6 {[%clk 0:03:00]} 3. Nf3 {[%clk 0:03:00]} 3... d5 {[%clk 0:03:00.4]} 4. Nc3
{[%clk 0:02:54.3]} 4... a6 {[%clk 0:03:00.3]} 5. e3 {[%clk 0:02:53.4]} 5... e6
{[%clk 0:03:00.1]} 6. b3 {[%clk 0:02:49.7]} 6... Bb4 {[%clk 0:02:59.6]} 7. Bd2
{[%clk 0:02:49.6]} 7... Nbd7 {[%clk 0:02:59.9]} 8. Bd3 {[%clk 0:02:49.3]} 8...
O-O {[%clk 0:03:00.1]} 9. O-O {[%clk 0:02:49.1]} 9... Qe7 {[%clk 0:02:56.4]} 10.
Qc2 {[%clk 0:02:47.4]} 10... e5 {[%clk 0:02:51.7]} 11. dxe5 {[%clk 0:02:26.1]}
11... Nxe5 {[%clk 0:02:51.8]} 12. Nxe5 {[%clk 0:02:25.2]} 12... Qxe5 {[%clk
0:02:52.7]} 13. cxd5 {[%clk 0:02:23.3]} 13... cxd5 {[%clk 0:02:39.7]} 14. Ne2
{[%clk 0:02:09.2]} 14... Bd6 {[%clk 0:02:39.7]} 15. Ng3 {[%clk 0:02:06.4]} 15...
h5 {[%clk 0:02:25.8]} 16. Bc3 {[%clk 0:02:04.9]} 16... Qe7 {[%clk 0:02:24.3]}
17. Nf5 {[%clk 0:01:50.2]} 17... Bxf5 {[%clk 0:02:22.3]} 18. Bxf5 {[%clk
0:01:50.7]} 18... Be5 {[%clk 0:02:08.6]} 19. Bd4 {[%clk 0:01:41.7]} 19... g6
{[%clk 0:02:02.7]} 20. Bd3 {[%clk 0:01:38.3]} 20... Bxd4 {[%clk 0:01:54.9]} 21.
exd4 {[%clk 0:01:38.5]} 21... Qb4 {[%clk 0:01:40.5]} 22. Rad1 {[%clk 0:01:29]}
22... Rac8 {[%clk 0:01:37.3]} 23. Qe2 {[%clk 0:01:27.9]} 23... Kg7 {[%clk
0:01:29.9]} 24. Qe3 {[%clk 0:01:19.2]} 24... Rfe8 {[%clk 0:01:28.6]} 25. Qf4
{[%clk 0:01:19.1]} 25... Qa3 {[%clk 0:01:16.7]} 26. Rd2 {[%clk 0:01:16]} 26...
Rc1 {[%clk 0:01:16.6]} 27. g3 {[%clk 0:00:55.3]} 27... Rxf1+ {[%clk 0:01:14.3]}
28. Bxf1 {[%clk 0:00:47.1]} 28... Qc1 {[%clk 0:01:08.4]} 29. Kg2 {[%clk
0:00:42.6]} 29... Re4 {[%clk 0:00:54.6]} 30. Qg5 {[%clk 0:00:39]} 30... Rxd4
{[%clk 0:00:48.1]} 31. Qxf6+ {[%clk 0:00:35.5]} 31... Kxf6 {[%clk 0:00:47.4]}
32. Rxd4 {[%clk 0:00:35.1]} 32... Qc3 {[%clk 0:00:37.8]} 33. Rd3 {[%clk
0:00:29.6]} 33... Qc2 {[%clk 0:00:37.7]} 34. a4 {[%clk 0:00:28.4]} 34... Ke5
{[%clk 0:00:37.5]} 35. Re3+ {[%clk 0:00:25.3]} 35... Kd6 {[%clk 0:00:36.6]} 36.
h4 {[%clk 0:00:21.2]} 36... d4 {[%clk 0:00:36.3]} 37. Rf3 {[%clk 0:00:19.3]}
37... Qe4 {[%clk 0:00:34.2]} 38. Bd3 {[%clk 0:00:18.7]} 38... Qc6 {[%clk
0:00:30.4]} 0-1

[Event "*** Titled Tuesday Blitz"]
[Site "Chess.com"]
[Date "2021.04.27"]
[Round "3"]
[White "WiktoriaPOL"]
[Black "elohunter1999"]
[Result "0-1"]
[WhiteElo "2045"]
[BlackElo "2484"]
[TimeControl "180+1"]
[EndTime "10:27:45 PDT"]
[Termination "elohunter1999 won by checkmate"]

1. e4 {[%clk 0:03:00.9]} 1... c5 {[%clk 0:02:57]} 2. d4 {[%clk 0:03:00.3]} 2...
cxd4 {[%clk 0:02:57.2]} 3. c3 {[%clk 0:03:00.4]} 3... dxc3 {[%clk 0:02:58.1]} 4.
Nxc3 {[%clk 0:03:00.9]} 4... Nc6 {[%clk 0:02:58.8]} 5. Nf3 {[%clk 0:03:00.8]}
5... d6 {[%clk 0:02:59.5]} 6. Bc4 {[%clk 0:03:00.7]} 6... a6 {[%clk 0:03:00.1]}
7. O-O {[%clk 0:03:00.5]} 7... Nf6 {[%clk 0:03:00.6]} 8. Re1 {[%clk 0:02:59.4]}
8... Bg4 {[%clk 0:02:59.9]} 9. h3 {[%clk 0:02:57.9]} 9... Bxf3 {[%clk
0:02:59.7]} 10. Qxf3 {[%clk 0:02:58.8]} 10... e6 {[%clk 0:03:00.1]} 11. Bg5
{[%clk 0:02:54.4]} 11... Be7 {[%clk 0:02:59.9]} 12. Rad1 {[%clk 0:02:53.2]}
12... Qb8 {[%clk 0:02:58.2]} 13. Qg3 {[%clk 0:02:45.1]} 13... Ne5 {[%clk
0:02:54.6]} 14. Bb3 {[%clk 0:02:41.6]} 14... O-O {[%clk 0:02:51.5]} 15. f4
{[%clk 0:02:40.2]} 15... Ng6 {[%clk 0:02:36.9]} 16. e5 {[%clk 0:02:30.2]} 16...
dxe5 {[%clk 0:02:34.9]} 17. fxe5 {[%clk 0:02:28.2]} 17... Nh5 {[%clk 0:02:34.2]}
18. Qg4 {[%clk 0:02:20.1]} 18... Bxg5 {[%clk 0:02:34.2]} 19. Qxg5 {[%clk
0:02:20.6]} 19... Qa7+ {[%clk 0:02:35.1]} 20. Kh2 {[%clk 0:02:17.6]} 20... Nhf4
{[%clk 0:02:35.3]} 21. Rf1 {[%clk 0:01:56.5]} 21... h6 {[%clk 0:02:32.9]} 22.
Qg4 {[%clk 0:01:53.7]} 22... Qe3 {[%clk 0:02:21.4]} 23. Rde1 {[%clk 0:01:45.7]}
23... Qd2 {[%clk 0:02:21.6]} 24. Ne4 {[%clk 0:01:30.8]} 24... Qxb2 {[%clk
0:02:17.2]} 25. Rxf4 {[%clk 0:01:26]} 25... Nxf4 {[%clk 0:01:59.5]} 26. Qxf4
{[%clk 0:01:26.9]} 26... Rac8 {[%clk 0:01:51.7]} 27. Re3 {[%clk 0:01:25.4]}
27... Qc1 {[%clk 0:01:46.4]} 28. Qf2 {[%clk 0:00:43.7]} 28... Qa1 {[%clk
0:01:27.1]} 29. Nf6+ {[%clk 0:00:18]} 29... Kh8 {[%clk 0:01:25.3]} 30. Re1
{[%clk 0:00:15.8]} 30... Qc3 {[%clk 0:01:19.8]} 31. Ng4 {[%clk 0:00:11.4]} 31...
Rcd8 {[%clk 0:00:59.6]} 32. Re3 {[%clk 0:00:09.9]} 32... Rd3 {[%clk 0:00:58.9]}
33. Re2 {[%clk 0:00:04.6]} 33... Qd4 {[%clk 0:00:51.9]} 34. Qh4 {[%clk
0:00:03.5]} 34... Qf4+ {[%clk 0:00:47.4]} 35. Kh1 {[%clk 0:00:02.4]} 35... Rfd8
{[%clk 0:00:45.2]} 36. Rf2 {[%clk 0:00:02]} 36... Rd1+ {[%clk 0:00:43.4]} 37.
Bxd1 {[%clk 0:00:01.5]} 37... Rxd1+ {[%clk 0:00:44.3]} 38. Rf1 {[%clk
0:00:02.1]} 38... Rxf1# {[%clk 0:00:45]} 0-1

[Event "*** Titled Tuesday Blitz"]
[Site "Chess.com"]
[Date "2021.04.27"]
[Round "3"]
[White "woodhy"]
[Black "moro182"]
[Result "0-1"]
[WhiteElo "2504"]
[BlackElo "2717"]
[TimeControl "180+1"]
[EndTime "10:27:49 PDT"]
[Termination "moro182 won on time"]

1. e4 {[%clk 0:02:43.5]} 1... e5 {[%clk 0:02:59.3]} 2. Nf3 {[%clk 0:02:43.3]}
2... Nc6 {[%clk 0:02:59.6]} 3. Nc3 {[%clk 0:02:41.9]} 3... Nf6 {[%clk
0:02:58.5]} 4. a3 {[%clk 0:02:41.9]} 4... g6 {[%clk 0:02:58.1]} 5. Bc4 {[%clk
0:02:41.3]} 5... Bg7 {[%clk 0:02:58.2]} 6. O-O {[%clk 0:02:41]} 6... O-O {[%clk
0:02:58.5]} 7. Re1 {[%clk 0:02:37.4]} 7... d6 {[%clk 0:02:58.1]} 8. h3 {[%clk
0:02:37.7]} 8... h6 {[%clk 0:02:58.1]} 9. b4 {[%clk 0:02:37.9]} 9... Nh5 {[%clk
0:02:55.9]} 10. d3 {[%clk 0:02:35.1]} 10... Nf4 {[%clk 0:02:47.5]} 11. Nd5
{[%clk 0:02:33.7]} 11... g5 {[%clk 0:02:34.8]} 12. Bb2 {[%clk 0:02:15.1]} 12...
Kh7 {[%clk 0:02:28.9]} 13. d4 {[%clk 0:02:07.7]} 13... g4 {[%clk 0:02:12.8]} 14.
Nxf4 {[%clk 0:01:59.9]} 14... gxf3 {[%clk 0:01:44.6]} 15. Nh5 {[%clk 0:01:48.4]}
15... fxg2 {[%clk 0:01:42.8]} 16. Nxg7 {[%clk 0:01:40.9]} 16... Kxg7 {[%clk
0:01:43.7]} 17. dxe5 {[%clk 0:01:38]} 17... dxe5 {[%clk 0:01:31.4]} 18. Re3
{[%clk 0:01:16.4]} 18... Qh4 {[%clk 0:01:14.5]} 19. Rg3+ {[%clk 0:00:36]} 19...
Kh7 {[%clk 0:01:12.6]} 20. Qf3 {[%clk 0:00:36.5]} 20... Be6 {[%clk 0:01:06]} 21.
Bd5 {[%clk 0:00:33.8]} 21... Rad8 {[%clk 0:00:27.9]} 22. Bxc6 {[%clk 0:00:31.2]}
22... bxc6 {[%clk 0:00:28.8]} 23. Bxe5 {[%clk 0:00:30.7]} 23... f6 {[%clk
0:00:28.5]} 24. Bxc7 {[%clk 0:00:28.7]} 24... Rd7 {[%clk 0:00:26.8]} 25. Bf4
{[%clk 0:00:27.2]} 25... Rg8 {[%clk 0:00:23.4]} 26. Kxg2 {[%clk 0:00:10.7]}
26... Qxh3+ {[%clk 0:00:20.5]} 27. Kg1 {[%clk 0:00:10.8]} 27... Rdg7 {[%clk
0:00:20.6]} 28. Rd1 {[%clk 0:00:07.3]} 28... Bg4 {[%clk 0:00:18.2]} 0-1